[Event "Titled Tuesday Blitz August 15 Early 2023"]
[White "Jakubowska, Anna"]
[Black "Sadykov, Ramil"]
[WhiteFideId "1121952"]
[BlackFideId "24113590"]
[WhiteElo "2390"]
[BlackElo "2591"]
[Result "0-1"]
[Round "4"]
[TimeControl "180+1"]
[Date "2023.08.15"]
[WhiteClock "0:00:04"]
[BlackClock "0:00:08"]
[Board "138"]

1. e4 {[%clk 0:03:00]}  c5 {[%clk 0:02:57]} 2. Nf3 {[%clk 0:02:59]}  e6 {[%clk 0:02:57]} 3. d4 {[%clk 0:02:58]}  cxd4 {[%clk 0:02:58]} 4. Nxd4 {[%clk 0:02:59]}  Nf6 {[%clk 0:02:58]} 5. Bd3 {[%clk 0:02:55]}  a6 {[%clk 0:02:53]} 6. O-O {[%clk 0:02:54]}  Qc7 {[%clk 0:02:53]} 7. Qe2 {[%clk 0:02:44]}  Nc6 {[%clk 0:02:24]} 8. Nxc6 {[%clk 0:02:38]}  dxc6 {[%clk 0:02:22]} 9. e5 {[%clk 0:02:24]}  Nd7 {[%clk 0:02:18]} 10. f4 {[%clk 0:02:17]}  Nc5 {[%clk 0:02:16]} 11. Kh1 {[%clk 0:02:04]}  b5 {[%clk 0:02:11]} 12. Nc3 {[%clk 0:02:00]}  Bb7 {[%clk 0:02:07]} 13. a4 {[%clk 0:01:32]}  Nxd3 {[%clk 0:01:50]} 14. Qxd3 {[%clk 0:01:32]}  Rd8 {[%clk 0:01:48]} 15. Qg3 {[%clk 0:01:31]}  h5 {[%clk 0:01:41]} 16. Be3 {[%clk 0:01:26]}  h4 {[%clk 0:01:39]} 17. Qg4 {[%clk 0:01:22]}  h3 {[%clk 0:01:35]} 18. gxh3 {[%clk 0:01:09]}  c5+ {[%clk 0:01:32]} 19. Kg1 {[%clk 0:01:08]}  Qc6 {[%clk 0:01:31]} 20. Qg3 {[%clk 0:01:05]}  b4 {[%clk 0:01:01]} 21. Ne2 {[%clk 0:00:58]}  c4 {[%clk 0:00:43]} 22. Nd4 {[%clk 0:00:51]}  Qe4 {[%clk 0:00:36]} 23. c3 {[%clk 0:00:46]}  Bc5 {[%clk 0:00:25]} 24. Rad1 {[%clk 0:00:22]}  Rh6 {[%clk 0:00:25]} 25. Kf2 {[%clk 0:00:19]}  Rg6 {[%clk 0:00:24]} 26. Qf3 {[%clk 0:00:19]}  Rxd4 {[%clk 0:00:17]} 27. Qxe4 {[%clk 0:00:16]}  Rxe4 {[%clk 0:00:15]} 28. Bxc5 {[%clk 0:00:15]}  Rxf4+ {[%clk 0:00:12]} 29. Ke3 {[%clk 0:00:15]}  Re4+ {[%clk 0:00:11]} 30. Kd2 {[%clk 0:00:12]}  Rg2+ {[%clk 0:00:11]} 31. Kc1 {[%clk 0:00:12]}  bxc3 {[%clk 0:00:08]} 32. bxc3 {[%clk 0:00:10]}  Rxe5 {[%clk 0:00:08]} 33. Ba3 {[%clk 0:00:07]}  Ree2 {[%clk 0:00:08]} 34. Rde1 {[%clk 0:00:06]}  Ra2 {[%clk 0:00:08]} 35. Bb4 {[%clk 0:00:04]}  Ra1# {[%clk 0:00:08]} 0-1


[Site "https://www.chess.com"]

[Event "Titled Tuesday Blitz August 15 Early 2023"]
[White "Gu, Xiaobing"]
[Black "Nguyen Hong Anh"]
[WhiteFideId "8602611"]
[BlackFideId "12406732"]
[WhiteElo "2381"]
[BlackElo "2546"]
[Result "1-0"]
[Round "4"]
[TimeControl "180+1"]
[Date "2023.08.15"]
[WhiteClock "0:00:15"]
[BlackClock "0:00:08"]
[Board "143"]

1. e4 {[%clk 0:03:00]}  c5 {[%clk 0:02:59]} 2. Nf3 {[%clk 0:02:57]}  Nc6 {[%clk 0:02:58]} 3. Bb5 {[%clk 0:02:56]}  g6 {[%clk 0:02:57]} 4. Bxc6 {[%clk 0:02:54]}  dxc6 {[%clk 0:02:57]} 5. d3 {[%clk 0:02:55]}  Bg7 {[%clk 0:02:57]} 6. Nc3 {[%clk 0:02:55]}  Qc7 {[%clk 0:02:56]} 7. h3 {[%clk 0:02:54]}  e5 {[%clk 0:02:54]} 8. Be3 {[%clk 0:02:53]}  b6 {[%clk 0:02:54]} 9. Qd2 {[%clk 0:02:51]}  Ne7 {[%clk 0:02:49]} 10. Kf1 {[%clk 0:02:39]}  O-O {[%clk 0:02:48]} 11. Bh6 {[%clk 0:02:33]}  f5 {[%clk 0:02:44]} 12. h4 {[%clk 0:02:30]}  f4 {[%clk 0:02:31]} 13. Bxg7 {[%clk 0:02:24]}  Kxg7 {[%clk 0:02:30]} 14. h5 {[%clk 0:02:24]}  Bg4 {[%clk 0:02:16]} 15. h6+ {[%clk 0:02:19]}  Kh8 {[%clk 0:02:14]} 16. Ng5 {[%clk 0:02:19]}  f3 {[%clk 0:01:55]} 17. g3 {[%clk 0:02:14]}  Rad8 {[%clk 0:01:44]} 18. Nd1 {[%clk 0:02:11]}  c4 {[%clk 0:01:42]} 19. Ne3 {[%clk 0:02:11]}  Qd7 {[%clk 0:01:42]} 20. Nxc4 {[%clk 0:02:06]}  Qd4 {[%clk 0:01:41]} 21. Qc3 {[%clk 0:01:41]}  Qxc3 {[%clk 0:00:09]} 22. bxc3 {[%clk 0:01:39]}  Kg8 {[%clk 0:00:08]} 23. Nxe5 {[%clk 0:01:37]}  Bc8 {[%clk 0:00:08]} 24. d4 {[%clk 0:01:37]}  c5 {[%clk 0:00:08]} 25. Ngxf3 {[%clk 0:01:28]}  cxd4 {[%clk 0:00:07]} 26. cxd4 {[%clk 0:01:27]}  Bb7 {[%clk 0:00:08]} 27. d5 {[%clk 0:01:26]}  Nxd5 {[%clk 0:00:08]} 28. exd5 {[%clk 0:01:24]}  Bxd5 {[%clk 0:00:09]} 29. Kg2 {[%clk 0:01:07]}  Rf5 {[%clk 0:00:09]} 30. Rae1 {[%clk 0:00:31]}  Re8 {[%clk 0:00:09]} 31. g4 {[%clk 0:00:16]}  Rfxe5 {[%clk 0:00:08]} 32. Rxe5 {[%clk 0:00:16]}  Rxe5 {[%clk 0:00:09]} 33. Kg3 {[%clk 0:00:16]}  Re1 {[%clk 0:00:08]} 34. Rxe1 {[%clk 0:00:15]} 1-0


[Site "https://www.chess.com"]

[Event "Titled Tuesday Blitz August 15 Early 2023"]
[White "Arutla, Aditya"]
[Black "Korpics, Zsolt"]
[WhiteFideId "30961998"]
[BlackFideId "705241"]
[WhiteElo "2526"]
[BlackElo "2370"]
[Result "0-1"]
[Round "4"]
[TimeControl "180+1"]
[Date "2023.08.15"]
[WhiteClock "0:00:16"]
[BlackClock "0:00:21"]
[Board "147"]

1. d4 {[%clk 0:03:00]}  Nf6 {[%clk 0:02:59]} 2. Bf4 {[%clk 0:03:00]}  d5 {[%clk 0:02:57]} 3. e3 {[%clk 0:02:59]}  c5 {[%clk 0:02:57]} 4. Nf3 {[%clk 0:02:59]}  Nc6 {[%clk 0:02:55]} 5. Nbd2 {[%clk 0:02:59]}  Bf5 {[%clk 0:02:42]} 6. dxc5 {[%clk 0:02:48]}  e6 {[%clk 0:02:41]} 7. a3 {[%clk 0:02:45]}  Bxc5 {[%clk 0:02:40]} 8. b4 {[%clk 0:02:45]}  Bd6 {[%clk 0:02:38]} 9. Bxd6 {[%clk 0:02:40]}  Qxd6 {[%clk 0:02:39]} 10. c4 {[%clk 0:02:40]}  O-O {[%clk 0:02:32]} 11. c5 {[%clk 0:02:36]}  Qc7 {[%clk 0:02:25]} 12. Bb5 {[%clk 0:02:35]}  e5 {[%clk 0:02:24]} 13. O-O {[%clk 0:02:30]}  a6 {[%clk 0:02:20]} 14. Bxc6 {[%clk 0:02:30]}  bxc6 {[%clk 0:02:21]} 15. Nb3 {[%clk 0:02:23]}  h6 {[%clk 0:02:20]} 16. Qd2 {[%clk 0:02:21]}  Ne4 {[%clk 0:02:16]} 17. Qb2 {[%clk 0:02:19]}  Rfe8 {[%clk 0:02:08]} 18. Rad1 {[%clk 0:02:18]}  Bg4 {[%clk 0:02:08]} 19. Na5 {[%clk 0:02:15]}  Bxf3 {[%clk 0:02:04]} 20. gxf3 {[%clk 0:02:16]}  Ng5 {[%clk 0:02:05]} 21. Qe2 {[%clk 0:02:16]}  Qd7 {[%clk 0:01:49]} 22. h4 {[%clk 0:02:05]}  Nh7 {[%clk 0:01:15]} 23. Rfe1 {[%clk 0:02:02]}  Qh3 {[%clk 0:01:11]} 24. Qf1 {[%clk 0:01:34]}  Qxh4 {[%clk 0:01:08]} 25. Qg2 {[%clk 0:01:27]}  Ng5 {[%clk 0:01:07]} 26. Kf1 {[%clk 0:01:20]}  Re6 {[%clk 0:01:05]} 27. Ke2 {[%clk 0:01:20]}  e4 {[%clk 0:01:04]} 28. f4 {[%clk 0:01:10]}  Qh5+ {[%clk 0:01:05]} 29. Kd2 {[%clk 0:01:07]}  Nf3+ {[%clk 0:01:03]} 30. Kc3 {[%clk 0:01:07]}  Qf5 {[%clk 0:00:37]} 31. Rh1 {[%clk 0:01:03]}  Qf6+ {[%clk 0:00:36]} 32. Kc2 {[%clk 0:00:57]}  d4 {[%clk 0:00:35]} 33. exd4 {[%clk 0:00:34]}  Nxd4+ {[%clk 0:00:36]} 34. Kb1 {[%clk 0:00:33]}  Ne2 {[%clk 0:00:32]} 35. Rd2 {[%clk 0:00:24]}  Nc3+ {[%clk 0:00:30]} 36. Kc2 {[%clk 0:00:21]}  Na4 {[%clk 0:00:22]} 37. Rhd1 {[%clk 0:00:16]}  Qb2# {[%clk 0:00:21]} 0-1


[Site "https://www.chess.com"]

[Event "Titled Tuesday Blitz August 15 Early 2023"]
[White "arturdailima"]
[Black "ArtemDyachuk"]
[WhiteElo "2362"]
[BlackElo "2522"]
[Result "0-1"]
[Round "4"]
[TimeControl "180+1"]
[Date "2023.08.15"]
[WhiteClock "0:00:50"]
[BlackClock "0:00:02"]
[Board "148"]

1. e4 {[%clk 0:03:00]}  c6 {[%clk 0:02:56]} 2. d4 {[%clk 0:03:00]}  d5 {[%clk 0:02:56]} 3. e5 {[%clk 0:02:56]}  Bf5 {[%clk 0:02:55]} 4. h4 {[%clk 0:02:56]}  h5 {[%clk 0:02:53]} 5. Bg5 {[%clk 0:02:57]}  Qb6 {[%clk 0:02:50]} 6. Nd2 {[%clk 0:02:43]}  Qxd4 {[%clk 0:02:21]} 7. Ngf3 {[%clk 0:02:35]}  Qb6 {[%clk 0:02:21]} 8. Bd3 {[%clk 0:02:21]}  Bxd3 {[%clk 0:02:17]} 9. cxd3 {[%clk 0:02:22]}  e6 {[%clk 0:02:17]} 10. O-O {[%clk 0:02:16]}  Be7 {[%clk 0:02:16]} 11. a4 {[%clk 0:02:11]}  Nd7 {[%clk 0:02:14]} 12. a5 {[%clk 0:02:11]}  Qc7 {[%clk 0:02:14]} 13. a6 {[%clk 0:02:10]}  b6 {[%clk 0:02:13]} 14. d4 {[%clk 0:02:08]}  Bxg5 {[%clk 0:02:02]} 15. Nxg5 {[%clk 0:02:07]}  Nh6 {[%clk 0:02:02]} 16. Qxh5 {[%clk 0:02:02]}  O-O-O {[%clk 0:01:10]} 17. g3 {[%clk 0:01:44]}  Rdf8 {[%clk 0:00:32]} 18. Rac1 {[%clk 0:01:36]}  Nf5 {[%clk 0:00:29]} 19. Qg4 {[%clk 0:01:34]}  Rh6 {[%clk 0:00:26]} 20. b4 {[%clk 0:01:29]}  Rg6 {[%clk 0:00:20]} 21. Qf4 {[%clk 0:01:16]}  Kb8 {[%clk 0:00:15]} 22. b5 {[%clk 0:01:15]}  c5 {[%clk 0:00:13]} 23. dxc5 {[%clk 0:01:15]}  Nxc5 {[%clk 0:00:13]} 24. Nb3 {[%clk 0:01:16]}  f6 {[%clk 0:00:07]} 25. Nxc5 {[%clk 0:01:13]}  fxg5 {[%clk 0:00:07]} 26. Nxe6 {[%clk 0:00:59]}  Rxe6 {[%clk 0:00:06]} 27. Qxf5 {[%clk 0:00:57]}  Rxf5 {[%clk 0:00:05]} 28. Rxc7 {[%clk 0:00:57]}  Kxc7 {[%clk 0:00:06]} 29. f4 {[%clk 0:00:55]}  gxh4 {[%clk 0:00:05]} 30. g4 {[%clk 0:00:54]}  Rf8 {[%clk 0:00:04]} 31. Kh2 {[%clk 0:00:52]}  g5 {[%clk 0:00:04]} 32. f5 {[%clk 0:00:53]}  Rxe5 {[%clk 0:00:04]} 33. Rc1+ {[%clk 0:00:53]}  Kd7 {[%clk 0:00:04]} 34. Rc6 {[%clk 0:00:50]}  d4 {[%clk 0:00:03]} 35. Rg6 {[%clk 0:00:49]}  d3 {[%clk 0:00:03]} 36. Rg7+ {[%clk 0:00:46]}  Kd6 {[%clk 0:00:03]} 37. Rg6+ {[%clk 0:00:47]}  Kd5 {[%clk 0:00:03]} 38. Rg7 {[%clk 0:00:46]}  Ke4 {[%clk 0:00:03]} 39. Rd7 {[%clk 0:00:46]}  Rd5 {[%clk 0:00:03]} 40. Re7+ {[%clk 0:00:46]}  Kf4 {[%clk 0:00:03]} 41. Kg2 {[%clk 0:00:47]}  d2 {[%clk 0:00:03]} 42. Re2 {[%clk 0:00:48]}  Kxg4 {[%clk 0:00:02]} 43. Rf2 {[%clk 0:00:49]}  Rfxf5 {[%clk 0:00:02]} 44. Re2 {[%clk 0:00:48]}  d1=Q {[%clk 0:00:02]} 45. Re4+ {[%clk 0:00:49]}  Kh5 {[%clk 0:00:02]} 46. Re3 {[%clk 0:00:50]}  Qf1+ {[%clk 0:00:01]} 47. Kh2 {[%clk 0:00:50]}  Rf2# {[%clk 0:00:02]} 0-1


[Site "https://www.chess.com"]

[Event "Titled Tuesday Blitz August 15 Early 2023"]
[White "Toropov, Pavel"]
[Black "Ovezdurdyyeva, Jemal"]
[WhiteFideId "24129178"]
[BlackFideId "14001888"]
[WhiteElo "2519"]
[BlackElo "2355"]
[Result "0-1"]
[Round "4"]
[TimeControl "180+1"]
[Date "2023.08.15"]
[WhiteClock "0:00:13"]
[BlackClock "0:00:13"]
[Board "149"]

1. e4 {[%clk 0:02:53]}  d6 {[%clk 0:02:59]} 2. d4 {[%clk 0:02:53]}  Nf6 {[%clk 0:03:00]} 3. Nc3 {[%clk 0:02:53]}  g6 {[%clk 0:03:01]} 4. h3 {[%clk 0:02:54]}  c6 {[%clk 0:03:01]} 5. g4 {[%clk 0:02:54]}  b5 {[%clk 0:03:02]} 6. Bg2 {[%clk 0:02:55]}  b4 {[%clk 0:03:01]} 7. Nce2 {[%clk 0:02:54]}  Bg7 {[%clk 0:03:01]} 8. Ng3 {[%clk 0:02:54]}  a5 {[%clk 0:02:59]} 9. N1e2 {[%clk 0:02:54]}  Nbd7 {[%clk 0:02:58]} 10. O-O {[%clk 0:02:55]}  O-O {[%clk 0:02:58]} 11. f4 {[%clk 0:02:54]}  e5 {[%clk 0:02:58]} 12. f5 {[%clk 0:02:54]}  exd4 {[%clk 0:02:57]} 13. g5 {[%clk 0:02:53]}  Qb6 {[%clk 0:02:46]} 14. Kh1 {[%clk 0:02:38]}  Nxe4 {[%clk 0:02:22]} 15. Bxe4 {[%clk 0:02:34]}  gxf5 {[%clk 0:02:14]} 16. Nxf5 {[%clk 0:02:32]}  Nc5 {[%clk 0:02:09]} 17. Bg2 {[%clk 0:02:26]}  Bxf5 {[%clk 0:02:07]} 18. Rxf5 {[%clk 0:02:25]}  Rae8 {[%clk 0:02:02]} 19. Bf4 {[%clk 0:02:20]}  Ne4 {[%clk 0:01:37]} 20. Qf1 {[%clk 0:01:43]}  d5 {[%clk 0:01:27]} 21. Re1 {[%clk 0:01:38]}  Re6 {[%clk 0:01:16]} 22. Ng3 {[%clk 0:01:21]}  Rfe8 {[%clk 0:01:16]} 23. Nxe4 {[%clk 0:01:13]}  dxe4 {[%clk 0:01:16]} 24. Bg3 {[%clk 0:01:13]}  Qb7 {[%clk 0:01:10]} 25. Qc4 {[%clk 0:01:08]}  Qd7 {[%clk 0:00:51]} 26. Rxa5 {[%clk 0:01:03]}  d3 {[%clk 0:00:44]} 27. cxd3 {[%clk 0:00:59]}  exd3 {[%clk 0:00:44]} 28. Rxe6 {[%clk 0:00:54]}  Rxe6 {[%clk 0:00:34]} 29. Ra8+ {[%clk 0:00:52]}  Bf8 {[%clk 0:00:33]} 30. Qc5 {[%clk 0:00:45]}  Re7 {[%clk 0:00:30]} 31. Bd6 {[%clk 0:00:20]}  d2 {[%clk 0:00:17]} 32. Bxe7 {[%clk 0:00:18]}  d1=Q+ {[%clk 0:00:16]} 33. Kh2 {[%clk 0:00:19]}  Qc7+ {[%clk 0:00:15]} 34. Bd6 {[%clk 0:00:18]}  Qcxd6+ {[%clk 0:00:14]} 35. Qxd6 {[%clk 0:00:18]}  Qxd6+ {[%clk 0:00:15]} 36. Kg1 {[%clk 0:00:18]}  Qd1+ {[%clk 0:00:15]} 37. Kf2 {[%clk 0:00:16]}  Qd2+ {[%clk 0:00:14]} 38. Kf1 {[%clk 0:00:16]}  Qxg5 {[%clk 0:00:14]} 39. Rc8 {[%clk 0:00:15]}  c5 {[%clk 0:00:13]} 40. a4 {[%clk 0:00:15]}  bxa3 {[%clk 0:00:13]} 41. bxa3 {[%clk 0:00:16]}  Qc1+ {[%clk 0:00:13]} 42. Ke2 {[%clk 0:00:17]}  Qc2+ {[%clk 0:00:12]} 43. Kf1 {[%clk 0:00:16]}  Qf5+ {[%clk 0:00:12]} 44. Kg1 {[%clk 0:00:13]}  Qxc8 {[%clk 0:00:13]} 0-1


[Site "https://www.chess.com"]

[Event "Titled Tuesday Blitz August 15 Early 2023"]
[White "Li, Hui"]
[Black "FromTexas54"]
[WhiteFideId "15400310"]
[WhiteElo "2343"]
[BlackElo "2504"]
[Result "1/2-1/2"]
[Round "4"]
[TimeControl "180+1"]
[Date "2023.08.15"]
[WhiteClock "0:00:03"]
[BlackClock "0:00:42"]
[Board "152"]

1. e4 {[%clk 0:03:00]}  g6 {[%clk 0:03:00]} 2. d4 {[%clk 0:03:00]}  Bg7 {[%clk 0:02:59]} 3. Nc3 {[%clk 0:03:00]}  d6 {[%clk 0:03:00]} 4. Nf3 {[%clk 0:03:00]}  a6 {[%clk 0:02:59]} 5. Be2 {[%clk 0:03:00]}  Nf6 {[%clk 0:03:00]} 6. O-O {[%clk 0:03:00]}  O-O {[%clk 0:03:00]} 7. h3 {[%clk 0:03:00]}  b5 {[%clk 0:03:00]} 8. e5 {[%clk 0:03:00]}  Ne8 {[%clk 0:02:55]} 9. a4 {[%clk 0:02:42]}  b4 {[%clk 0:02:54]} 10. Nd5 {[%clk 0:02:42]}  a5 {[%clk 0:02:49]} 11. c3 {[%clk 0:02:40]}  c6 {[%clk 0:02:47]} 12. Ne3 {[%clk 0:02:40]}  Na6 {[%clk 0:02:44]} 13. Nc4 {[%clk 0:02:36]}  Be6 {[%clk 0:02:37]} 14. Bf4 {[%clk 0:02:24]}  d5 {[%clk 0:02:33]} 15. Ne3 {[%clk 0:02:19]}  Nec7 {[%clk 0:02:32]} 16. Qd2 {[%clk 0:02:03]}  c5 {[%clk 0:02:31]} 17. Nc2 {[%clk 0:01:27]}  Bf5 {[%clk 0:02:23]} 18. Ne3 {[%clk 0:01:24]}  Be4 {[%clk 0:02:21]} 19. Ng5 {[%clk 0:01:21]}  cxd4 {[%clk 0:02:15]} 20. cxd4 {[%clk 0:01:21]}  h6 {[%clk 0:02:15]} 21. Nxe4 {[%clk 0:01:19]}  dxe4 {[%clk 0:02:15]} 22. Rac1 {[%clk 0:00:49]}  Nd5 {[%clk 0:02:14]} 23. Nxd5 {[%clk 0:00:48]}  Qxd5 {[%clk 0:02:15]} 24. Bc4 {[%clk 0:00:41]}  Qd7 {[%clk 0:02:14]} 25. Bb5 {[%clk 0:00:39]}  Qa7 {[%clk 0:02:03]} 26. Bc6 {[%clk 0:00:29]}  Rad8 {[%clk 0:02:00]} 27. Be3 {[%clk 0:00:21]}  Qb8 {[%clk 0:01:56]} 28. Qe2 {[%clk 0:00:16]}  Nc7 {[%clk 0:01:55]} 29. Bxe4 {[%clk 0:00:14]}  Ne6 {[%clk 0:01:53]} 30. Rfd1 {[%clk 0:00:10]}  Kh7 {[%clk 0:01:46]} 31. b3 {[%clk 0:00:10]}  Rd7 {[%clk 0:01:41]} 32. d5 {[%clk 0:00:08]}  Ng5 {[%clk 0:01:41]} 33. Bxg5 {[%clk 0:00:04]}  hxg5 {[%clk 0:01:41]} 34. e6 {[%clk 0:00:04]}  Rc7 {[%clk 0:01:36]} 35. Qh5+ {[%clk 0:00:04]}  Kg8 {[%clk 0:01:30]} 36. exf7+ {[%clk 0:00:02]}  Rxf7 {[%clk 0:01:29]} 37. Qxg6 {[%clk 0:00:03]}  Rf4 {[%clk 0:01:02]} 38. Rxc7 {[%clk 0:00:02]}  Qxc7 {[%clk 0:01:02]} 39. Qe8+ {[%clk 0:00:02]}  Rf8 {[%clk 0:00:57]} 40. Qh5 {[%clk 0:00:02]}  Rf4 {[%clk 0:00:49]} 41. Qe8+ {[%clk 0:00:02]}  Bf8 {[%clk 0:00:42]} 42. Qg6+ {[%clk 0:00:03]}  Bg7 {[%clk 0:00:42]} 43. Qe8+ {[%clk 0:00:03]} 1/2-1/2


[Site "https://www.chess.com"]

[Event "Titled Tuesday Blitz August 15 Early 2023"]
[White "Okike, David"]
[Black "Martinez Reyes, Pedro Ramon"]
[WhiteFideId "8500134"]
[BlackFideId "3901807"]
[WhiteElo "2339"]
[BlackElo "2502"]
[Result "1/2-1/2"]
[Round "4"]
[TimeControl "180+1"]
[Date "2023.08.15"]
[WhiteClock "0:00:25"]
[BlackClock "0:00:06"]
[Board "154"]

1. e4 {[%clk 0:03:00]}  e6 {[%clk 0:02:55]} 2. d4 {[%clk 0:03:00]}  c5 {[%clk 0:02:55]} 3. Nf3 {[%clk 0:02:58]}  cxd4 {[%clk 0:02:55]} 4. Nxd4 {[%clk 0:02:59]}  Nf6 {[%clk 0:02:55]} 5. Nc3 {[%clk 0:02:59]}  Nc6 {[%clk 0:02:55]} 6. a3 {[%clk 0:02:58]}  d6 {[%clk 0:02:53]} 7. Bg5 {[%clk 0:02:51]}  Be7 {[%clk 0:02:53]} 8. f4 {[%clk 0:02:47]}  a6 {[%clk 0:02:50]} 9. Qd2 {[%clk 0:02:46]}  Qc7 {[%clk 0:02:50]} 10. O-O-O {[%clk 0:02:45]}  Bd7 {[%clk 0:02:46]} 11. Be2 {[%clk 0:02:45]}  h6 {[%clk 0:02:40]} 12. Bxf6 {[%clk 0:02:44]}  Bxf6 {[%clk 0:02:38]} 13. Nf3 {[%clk 0:02:44]}  Be7 {[%clk 0:02:37]} 14. Rhe1 {[%clk 0:02:39]}  Rd8 {[%clk 0:02:37]} 15. Bd3 {[%clk 0:02:38]}  b5 {[%clk 0:02:34]} 16. Ne2 {[%clk 0:02:34]}  b4 {[%clk 0:02:31]} 17. axb4 {[%clk 0:02:30]}  d5 {[%clk 0:02:31]} 18. exd5 {[%clk 0:02:27]}  Nxb4 {[%clk 0:02:31]} 19. d6 {[%clk 0:02:10]}  Bxd6 {[%clk 0:02:16]} 20. Ne5 {[%clk 0:02:07]}  Nxd3+ {[%clk 0:02:11]} 21. Nxd3 {[%clk 0:02:03]}  O-O {[%clk 0:02:11]} 22. Nc3 {[%clk 0:02:01]}  Bc6 {[%clk 0:02:05]} 23. g3 {[%clk 0:02:01]}  Rd7 {[%clk 0:02:01]} 24. Qe3 {[%clk 0:01:58]}  Rb8 {[%clk 0:02:01]} 25. Ne5 {[%clk 0:01:55]}  Bxe5 {[%clk 0:02:00]} 26. Rxd7 {[%clk 0:01:54]}  Qxd7 {[%clk 0:01:53]} 27. Qxe5 {[%clk 0:01:54]}  Qb7 {[%clk 0:01:53]} 28. b3 {[%clk 0:01:52]}  Rc8 {[%clk 0:01:37]} 29. Kb2 {[%clk 0:01:51]}  Bg2 {[%clk 0:01:33]} 30. Re2 {[%clk 0:01:50]}  Bh3 {[%clk 0:01:33]} 31. Ne4 {[%clk 0:01:42]}  Rd8 {[%clk 0:01:22]} 32. Nc5 {[%clk 0:01:39]}  Qc6 {[%clk 0:01:22]} 33. Nd3 {[%clk 0:01:27]}  Bf5 {[%clk 0:01:17]} 34. Re3 {[%clk 0:01:24]}  Bxd3 {[%clk 0:01:08]} 35. Rxd3 {[%clk 0:01:22]}  Rxd3 {[%clk 0:01:08]} 36. cxd3 {[%clk 0:01:22]}  f6 {[%clk 0:01:08]} 37. Qe2 {[%clk 0:01:21]}  Kf7 {[%clk 0:01:07]} 38. d4 {[%clk 0:01:19]}  g5 {[%clk 0:01:06]} 39. fxg5 {[%clk 0:01:17]}  hxg5 {[%clk 0:01:07]} 40. h4 {[%clk 0:01:16]}  gxh4 {[%clk 0:01:05]} 41. gxh4 {[%clk 0:01:16]}  a5 {[%clk 0:01:02]} 42. Qh5+ {[%clk 0:01:15]}  Kg7 {[%clk 0:00:57]} 43. Qxa5 {[%clk 0:01:14]}  Qd6 {[%clk 0:00:57]} 44. Qd2 {[%clk 0:01:05]}  Kg6 {[%clk 0:00:51]} 45. Qg2+ {[%clk 0:01:03]}  Kh5 {[%clk 0:00:50]} 46. Qf2 {[%clk 0:01:01]}  f5 {[%clk 0:00:48]} 47. Kc3 {[%clk 0:00:55]}  Qc6+ {[%clk 0:00:48]} 48. Kb2 {[%clk 0:00:55]}  Qe4 {[%clk 0:00:44]} 49. b4 {[%clk 0:00:55]}  f4 {[%clk 0:00:44]} 50. b5 {[%clk 0:00:54]}  f3 {[%clk 0:00:44]} 51. Kc3 {[%clk 0:00:50]}  Kg4 {[%clk 0:00:42]} 52. b6 {[%clk 0:00:43]}  Qc6+ {[%clk 0:00:41]} 53. Kd3 {[%clk 0:00:44]}  Qxb6 {[%clk 0:00:41]} 54. Qg1+ {[%clk 0:00:43]}  Kh3 {[%clk 0:00:41]} 55. Ke3 {[%clk 0:00:41]}  e5 {[%clk 0:00:26]} 56. Kxf3 {[%clk 0:00:40]}  Qf6+ {[%clk 0:00:25]} 57. Ke2 {[%clk 0:00:37]}  exd4 {[%clk 0:00:24]} 58. h5 {[%clk 0:00:37]}  Qf4 {[%clk 0:00:22]} 59. Kd3 {[%clk 0:00:35]}  Qh6 {[%clk 0:00:15]} 60. Qd1 {[%clk 0:00:31]}  Kh4 {[%clk 0:00:14]} 61. Qf3 {[%clk 0:00:29]}  Qd6 {[%clk 0:00:10]} 62. h6 {[%clk 0:00:27]}  Qa3+ {[%clk 0:00:10]} 63. Ke4 {[%clk 0:00:26]}  Qa8+ {[%clk 0:00:10]} 64. Kf4 {[%clk 0:00:26]}  Qf8+ {[%clk 0:00:10]} 65. Ke4 {[%clk 0:00:26]}  Qa8+ {[%clk 0:00:10]} 66. Kf4 {[%clk 0:00:26]}  Qb8+ {[%clk 0:00:09]} 67. Ke4 {[%clk 0:00:25]}  Qb7+ {[%clk 0:00:10]} 68. Kf4 {[%clk 0:00:25]}  Qc7+ {[%clk 0:00:10]} 69. Ke4 {[%clk 0:00:25]}  Qc6+ {[%clk 0:00:11]} 70. Kf4 {[%clk 0:00:25]}  Qd6+ {[%clk 0:00:11]} 71. Ke4 {[%clk 0:00:25]}  Qc6+ {[%clk 0:00:11]} 72. Kf4 {[%clk 0:00:25]}  Qf6+ {[%clk 0:00:12]} 73. Ke4 {[%clk 0:00:25]}  Qc6+ {[%clk 0:00:06]} 1/2-1/2


[Site "https://www.chess.com"]

[Event "Titled Tuesday Blitz August 15 Early 2023"]
[White "Rian, Kapriaga"]
[Black "Mammadzada, Gunay"]
[WhiteFideId "7103263"]
[BlackFideId "13403729"]
[WhiteElo "2338"]
[BlackElo "2501"]
[Result "0-1"]
[Round "4"]
[TimeControl "180+1"]
[Date "2023.08.15"]
[WhiteClock "0:00:00"]
[BlackClock "0:00:39"]
[Board "155"]

1. d4 {[%clk 0:02:55]}  d5 {[%clk 0:02:56]} 2. c4 {[%clk 0:02:54]}  c6 {[%clk 0:02:55]} 3. Nc3 {[%clk 0:02:53]}  Nf6 {[%clk 0:02:55]} 4. e3 {[%clk 0:02:44]}  g6 {[%clk 0:02:55]} 5. Nf3 {[%clk 0:02:42]}  Bg7 {[%clk 0:02:55]} 6. b3 {[%clk 0:02:41]}  O-O {[%clk 0:02:53]} 7. Be2 {[%clk 0:02:40]}  c5 {[%clk 0:02:45]} 8. Bb2 {[%clk 0:02:35]}  cxd4 {[%clk 0:02:41]} 9. exd4 {[%clk 0:02:21]}  Nc6 {[%clk 0:02:39]} 10. h3 {[%clk 0:02:17]}  b6 {[%clk 0:02:26]} 11. O-O {[%clk 0:02:14]}  Bb7 {[%clk 0:02:27]} 12. a3 {[%clk 0:02:05]}  Rc8 {[%clk 0:02:24]} 13. Rc1 {[%clk 0:01:44]}  e6 {[%clk 0:02:10]} 14. Re1 {[%clk 0:01:37]}  dxc4 {[%clk 0:01:59]} 15. bxc4 {[%clk 0:01:37]}  Na5 {[%clk 0:02:00]} 16. Na4 {[%clk 0:00:48]}  Bxf3 {[%clk 0:01:44]} 17. Bxf3 {[%clk 0:00:32]}  Nxc4 {[%clk 0:01:35]} 18. Ba1 {[%clk 0:00:29]}  Nd5 {[%clk 0:01:27]} 19. Qb3 {[%clk 0:00:27]}  Nd2 {[%clk 0:01:25]} 20. Qd3 {[%clk 0:00:19]}  Nxf3+ {[%clk 0:01:22]} 21. Qxf3 {[%clk 0:00:20]}  Qg5 {[%clk 0:01:21]} 22. Bb2 {[%clk 0:00:17]}  h5 {[%clk 0:01:14]} 23. Nc3 {[%clk 0:00:14]}  Bxd4 {[%clk 0:01:09]} 24. Ne4 {[%clk 0:00:12]}  Qe5 {[%clk 0:01:08]} 25. Bxd4 {[%clk 0:00:10]}  Qxd4 {[%clk 0:01:08]} 26. Rcd1 {[%clk 0:00:10]}  Qg7 {[%clk 0:01:04]} 27. Rxd5 {[%clk 0:00:08]}  exd5 {[%clk 0:01:03]} 28. Nf6+ {[%clk 0:00:08]}  Kh8 {[%clk 0:01:03]} 29. g4 {[%clk 0:00:07]}  Rc6 {[%clk 0:01:00]} 30. g5 {[%clk 0:00:06]}  Re6 {[%clk 0:00:58]} 31. Rc1 {[%clk 0:00:05]}  Rxf6 {[%clk 0:00:50]} 32. gxf6 {[%clk 0:00:04]}  Qh6 {[%clk 0:00:51]} 33. Rd1 {[%clk 0:00:03]}  Qg5+ {[%clk 0:00:50]} 34. Kh1 {[%clk 0:00:03]}  Rd8 {[%clk 0:00:51]} 35. Rd4 {[%clk 0:00:01]}  b5 {[%clk 0:00:41]} 36. h4 {[%clk 0:00:00]}  Qe5 {[%clk 0:00:39]} 0-1


[Site "https://www.chess.com"]